[Event "Portugal Open 2019"]
[Site "Lisbon"]
[Date "2019.02.02"]
[Round "1.40"]
[White "Morejko, Wojciech"]
[Black "Pantzar, Milton"]
[Result "0-1"]
[ECO "E01"]
[WhiteElo "1879"]
[BlackElo "2331"]
[Annotator "RC"]
[PlyCount "82"]
[EventDate "2019.01.25"]
[EventType "swiss"]
[EventCountry "POR"]
[SourceTitle "playchess.com"]
[Source "ChessBase"]
[SourceQuality "1"]
[TimeControl "5400+30"]

1. c4 {[%emt 0:00:00]} e6 {[%emt 0:00:00]} 2. d4 {[%emt 0:00:17]} d5 {[%emt 0:00:09]} 3. g3 {[%emt 0:00:18]} Nf6 {[%emt 0:01:32]} 4. Bg2 {[%emt 0:00:25]} Bb4+ {[%emt 0:00:39]} 5. Bd2 {[%emt 0:00:27]} Be7 {[%emt 0:00:30]} 6. Nf3 {[%emt 0:00:44]} O-O {[%emt 0:00:44]} 7. O-O {[%emt 0:00:26]} c6 {[%emt 0:02:26]} 8. Qc2 {[%emt 0:02:00]} Nbd7 {[%emt 0:04:14]} 9. Bf4 {[%emt 0:01:09]} Ne4 {[%emt 0:07:21]} 10. Nc3 {[%emt 0:08:01]} g5 {[%emt 0:02:36]} 11. Bc1 {[%emt 0:03:13]} f5 {[%emt 0:04:30]} 12. cxd5 {[%emt 0:01:05]} exd5 {[%emt 0:01:18]} 13. Rd1 {[%emt 0:09:47]} h6 {[%emt 0:10:42]} 14. Ne5 {[%emt 0:09:52]} Nxe5 15. dxe5 {[%emt 0:02:20]} Qe8 {[%emt 0:07:51]} 16. Nxe4 {[%emt 0:20:40]} fxe4 {[%emt 0:01:35]} 17. Be3 {[%emt 0:02:20]} Bg4 {[%emt 0:11:05]} 18. h3 {[%emt 0:04:22]} Be6 {[%emt 0:01:05]} 19. Rac1 {[%emt 0:05:55]} Rf7 {[%emt 0:13:13]} 20. Rf1 {[%emt 0:08:11]} c5 {[%emt 0:07:54]} 21. Rcd1 {[%emt 0:10:20]} Bf8 {[%emt 0:15:29]} 22. Kh2 {[%emt 0:03:23]} Rd8 {[%emt 0:02:14]} 23. Bc1 {[%emt 0:01:01]} Bf5 {[%emt 0:00:22]} 24. Qb3 {[%emt 0:02:17]} Qxe5 {[%emt 0:00:52]} 25. f4 {[%emt 0:01:51]} exf3 {[%emt 0:00:17]} 26. exf3 {[%emt 0:00:55]} c4 {[%emt 0:01:00]} 27. Qb5 {[%emt 0:00:38]} Bd3 {[%emt 0:01:54]} 28. Rfe1 {[%emt 0:00:50]} Qd6 {[%emt 0:01:35]} 29. f4 {[%emt 0:00:48]} a6 {[%emt 0:00:27]} 30. Qa5 {[%emt 0:00:33]} b6 {[%emt 0:00:37]} 31. Qc3 {[%emt 0:00:49]} Bg7 {[%emt 0:00:26]} 32. Qd2 {[%emt 0:00:21]} gxf4 {[%emt 0:00:04]} 33. gxf4 {[%emt 0:00:14]} Rdf8 {[%emt 0:00:42]} 34. Qf2 {[%emt 0:00:28]} Kh8 {[%emt 0:00:24]} 35. Kh1 {[%emt 0:00:33]} Rf5 {[%emt 0:00:29]} 36. a3 {[%emt 0:00:51]} d4 {[%emt 0:00:24]} 37. b3 {[%emt 0:00:24]} b5 {[%emt 0:00:09]} 38. bxc4 {[%emt 0:00:08]} bxc4 {[%emt 0:00:01]} 39. Qf3 {[%emt 0:00:59]} Bc2 {[%emt 0:00:36]} 40. Bb2 {[%emt 0:00:27]} Bxd1 {[%emt 0:00:11]} 41. Rxd1 {[%emt 0:00:05]} Rxf4 {[%emt 0:00:09]} 0-1

[Event "Portugal Open 2019"]
[Site "Lisbon"]
[Date "2019.02.03"]
[Round "2"]
[White "Iniyan, P."]
[Black "Kubicka, Anna"]
[Result "1-0"]
[ECO "A40"]
[WhiteElo "2480"]
[BlackElo "2186"]
[Annotator "RC"]
[PlyCount "117"]
[EventDate "2019.01.25"]
[EventType "swiss"]
[EventCountry "POR"]
[SourceTitle "playchess.com"]
[Source "ChessBase"]
[SourceQuality "1"]
[TimeControl "5400+30"]

1. d4 {[%emt 0:03:23]} g6 {[%emt 0:00:00]} 2. c4 {[%emt 0:00:10]} Bg7 {[%emt 0:00:00]} 3. e4 {[%emt 0:01:03]} d6 {[%emt 0:00:00]} 4. Nc3 {[%emt 0:00:31]} e5 {[%emt 0:00:18]} 5. Nge2 {[%emt 0:03:51]} Nc6 {[%emt 0:00:42]} 6. Be3 {[%emt 0:00:49]} exd4 {[%emt 0:00:43]} 7. Nxd4 {[%emt 0:00:08]} Nge7 {[%emt 0:00:13]} 8. Be2 {[%emt 0:10:20]} O-O {[%emt 0:00:41]} 9. h4 {[%emt 0:07:20]} f5 {[%emt 0:15:21]} 10. Qd2 {[%emt 0:14:04]} Qe8 {[%emt 0:19:44]} 11. Ndb5 {[%emt 0:02:33]} Qf7 {[%emt 0:08:00]} 12. Nxc7 {[%emt 0:01:03]} Rb8 {[%emt 0:15:48]} 13. N7b5 {[%emt 0:00:21]} f4 {[%emt 0:00:20]} 14. Bxa7 {[%emt 0:00:29]} Nxa7 {[%emt 0:00:12]} 15. Nxa7 {[%emt 0:00:06]} Be6 {[%emt 0:03:59]} 16. Nab5 {[%emt 0:00:24]} Rfd8 {[%emt 0:02:36]} 17. Rd1 {[%emt 0:09:52]} Be5 {[%emt 0:02:15]} 18. Nd4 {[%emt 0:03:43]} Bxc4 {[%emt 0:03:12]} 19. Nf3 {[%emt 0:00:19]} Bxe2 {[%emt 0:09:09]} 20. Nxe5 {[%emt 0:01:51]} dxe5 {[%emt 0:00:05]} 21. Qxe2 {[%emt 0:00:06]} Nc6 {[%emt 0:00:30]} 22. O-O {[%emt 0:02:20]} Nd4 {[%emt 0:00:33]} 23. Qg4 {[%emt 0:00:08]} f3 {[%emt 0:00:48]} 24. g3 {[%emt 0:01:12]} h5 {[%emt 0:02:19]} 25. Qg5 {[%emt 0:00:26]} Qe6 {[%emt 0:01:57]} 26. Kh2 {[%emt 0:00:07]} Rd7 {[%emt 0:01:58]} 27. Rd3 {[%emt 0:02:29]} Rbd8 {[%emt 0:01:59]} 28. Rfd1 {[%emt 0:01:19]} Kg7 {[%emt 0:00:26]} 29. Nd5 {[%emt 0:04:36]} Rc8 {[%emt 0:04:35]} 30. Rc3 {[%emt 0:00:22]} Rc6 {[%emt 0:00:19]} 31. a4 {[%emt 0:04:16]} Rf7 {[%emt 0:03:08]} 32. a5 {[%emt 0:00:17]} Kh7 {[%emt 0:01:06]} 33. Ra1 {[%emt 0:06:01]} Rxc3 {[%emt 0:01:48]} 34. bxc3 {[%emt 0:00:07]} Nb3 {[%emt 0:00:06]} 35. Ra2 {[%emt 0:02:18]} Qa6 {[%emt 0:00:56]} 36. Ne3 {[%emt 0:01:27]} Nc1 {[%emt 0:00:35]} 37. Rd2 {[%emt 0:01:58]} Nb3 {[%emt 0:01:02]} 38. Rb2 {[%emt 0:01:58]} Qxa5 {[%emt 0:00:49]} 39. g4 {[%emt 0:02:34]} Qxc3 {[%emt 0:00:29]} 40. Rc2 {[%emt 0:00:48]} Qd4 {[%emt 0:00:28]} 41. gxh5 {[%emt 0:01:27]} Qxe4 {[%emt 0:00:14]} 42. Rc4 {[%emt 0:01:47]} Nd4 {[%emt 0:00:35]} 43. Ng4 {[%emt 0:01:41]} Qf4+ {[%emt 0:00:45]} 44. Kh3 {[%emt 0:00:40]} Qxg5 {[%emt 0:00:36]} 45. hxg5 {[%emt 0:00:05]} Rf4 {[%emt 0:00:32]} 46. Nf6+ {[%emt 0:01:23]} Rxf6 {[%emt 0:00:12]} 47. Rc7+ {[%emt 0:00:05]} Kg8 {[%emt 0:00:20]} 48. gxf6 {[%emt 0:00:04]} gxh5 {[%emt 0:00:05]} 49. Kh4 {[%emt 0:00:11]} b5 {[%emt 0:00:43]} 50. Kxh5 {[%emt 0:00:07]} Ne6 {[%emt 0:00:27]} 51. Re7 {[%emt 0:00:35]} Nf4+ {[%emt 0:00:51]} 52. Kg5 {[%emt 0:00:32]} Nh3+ {[%emt 0:00:38]} 53. Kg6 {[%emt 0:00:05]} Nf4+ {[%emt 0:00:12]} 54. Kf5 {[%emt 0:00:04]} Nd3 {[%emt 0:00:32]} 55. Ke6 {[%emt 0:00:51]} e4 {[%emt 0:00:43]} 56. Re8+ {[%emt 0:00:09]} Kh7 {[%emt 0:00:02]} 57. f7 {[%emt 0:00:11]} Nf4+ {[%emt 0:00:06]} 58. Kf6 {[%emt 0:00:22]} Ng6 {[%emt 0:00:47]} 59. Rxe4 {[%emt 0:00:06]} 1-0

[Event "Portugal Open 2019"]
[Site "Lisbon"]
[Date "2019.02.03"]
[Round "2"]
[White "Pantzar, Milton"]
[Black "Froewis, Annika"]
[Result "1-0"]
[ECO "C78"]
[WhiteElo "2331"]
[BlackElo "2104"]
[Annotator "NA RC"]
[PlyCount "69"]
[EventDate "2019.01.25"]
[EventType "swiss"]
[EventCountry "POR"]
[SourceTitle "playchess.com"]
[Source "ChessBase"]
[SourceQuality "1"]
[TimeControl "5400+30"]

1. e4 e5 2. Nf3 Nc6 3. Bb5 a6 4. Ba4 Nf6 5. O-O b5 6. Bb3 Bc5 7. c3 (7. a4 Rb8 8. c3 {0-1 (33) Yu,Y (2759)-Svidler,P (2753) Shenzhen 2018}) 7... d6 8. a4 Rb8 9. d4 Bb6 10. a5 {C78: Ruy Lopez: Archangelsk and Möller Defences} Ba7 11. h3 O-O 12. Re1 $146 ({Predecessor:} 12. Be3 Ra8 13. Nbd2 Bb7 {0-1 (66) Pantzar,M (2330)-Nesterov,A (2411) Stockholm 2018}) 12... Bb7 13. Be3 Ra8 (13... exd4 14. cxd4 Ne7 15. Nbd2 Bxe4 16. Nxe4 Nxe4 17. Qc2 d5 {0-1 (33) Yu,Y (2759)-Svidler,P (2753) Shenzhen 2018}) 14. Nbd2 h6 15. Nf1 Re8 16. Ng3 Qd7 ({Predecessor:} 16... exd4 17. cxd4 Nxe4 {0-1 (66) Pantzar,M (2330)-Nesterov,A (2411) Stockholm 2018}) 17. Qd2 d5 $2 {[#]} (17... Nh7 18. Nf5 Kh8) 18. Bxh6 $1 g6 19. exd5 Nxd5 20. Qg5 Re6 21. Bxd5 Qxd5 22. Ne4 Qd8 23. d5 Qxg5 24. Bxg5 f5 25. Ng3 e4 26. dxc6 Bxc6 27. Nd4 Bxd4 28. cxd4 Bd5 29. Rac1 $18 c6 30. Re3 Kf7 31. Ne2 Rd6 32. Bf4 Rd7 33. h4 Rc8 34. Be5 Bc4 35. b3 1-0

[Event "Portugal Open 2019"]
[Site "Lisbon"]
[Date "2019.02.03"]
[Round "2"]
[White "Gu, Xiaobing"]
[Black "Jazdanovs, Aleksandrs"]
[Result "0-1"]
[ECO "B90"]
[WhiteElo "2326"]
[BlackElo "2100"]
[Annotator "RC"]
[PlyCount "90"]
[EventDate "2019.01.25"]
[EventType "swiss"]
[EventCountry "POR"]
[SourceTitle "playchess.com"]
[Source "ChessBase"]
[SourceQuality "1"]
[TimeControl "5400+30"]

1. e4 {[%emt 0:00:00]} c5 {[%emt 0:00:00]} 2. Nf3 {[%emt 0:00:27]} d6 {[%emt 0:00:36]} 3. d4 {[%emt 0:00:23]} cxd4 {[%emt 0:00:19]} 4. Nxd4 {[%emt 0:01:13]} Nf6 {[%emt 0:00:57]} 5. Nc3 {[%emt 0:00:03]} a6 {[%emt 0:00:48]} 6. Be3 {[%emt 0:02:27]} e5 {[%emt 0:01:00]} 7. Nb3 {[%emt 0:00:05]} Be6 {[%emt 0:01:32]} 8. f3 {[%emt 0:00:36]} h5 {[%emt 0:00:38]} 9. Nd5 {[%emt 0:02:50]} Bxd5 {[%emt 0:00:35]} 10. exd5 {[%emt 0:00:03]} Nbd7 {[%emt 0:02:22]} 11. Qd2 {[%emt 0:00:30]} b6 {[%emt 0:03:20]} 12. Be2 {[%emt 0:06:53]} g6 {[%emt 0:00:31]} 13. O-O {[%emt 0:01:13]} Bg7 {[%emt 0:00:15]} 14. Bg5 {[%emt 0:04:52]} O-O {[%emt 0:06:08]} 15. Rad1 {[%emt 0:09:27]} Qc7 {[%emt 0:04:57]} 16. Kh1 {[%emt 0:03:26]} Rfe8 {[%emt 0:10:28]} 17. Qd3 {[%emt 0:10:20]} e4 {[%emt 0:15:48]} 18. fxe4 {[%emt 0:02:23]} Nxe4 {[%emt 0:02:33]} 19. Bc1 {[%emt 0:00:32]} f5 {[%emt 0:03:06]} 20. Nd4 {[%emt 0:08:51]} Bxd4 {[%emt 0:01:06]} 21. Qxd4 {[%emt 0:00:02]} Ng3+ {[%emt 0:03:04]} 22. hxg3 {[%emt 0:00:12]} Rxe2 {[%emt 0:00:03]} 23. Rde1 {[%emt 0:04:53]} Qxc2 {[%emt 0:02:33]} 24. Bh6 {[%emt 0:06:41]} Qxb2 {[%emt 0:02:04]} 25. Qxb2 {[%emt 0:02:29]} Rxb2 {[%emt 0:00:07]} 26. Re6 {[%emt 0:02:19]} Nc5 {[%emt 0:12:21]} 27. Rxg6+ {[%emt 0:02:55]} Kh7 {[%emt 0:00:26]} 28. Bc1 {[%emt 0:08:27]} Kxg6 {[%emt 0:00:59]} 29. Bxb2 {[%emt 0:00:01]} Re8 {[%emt 0:01:23]} 30. Rb1 {[%emt 0:00:14]} b5 {[%emt 0:05:02]} 31. Ba3 {[%emt 0:00:56]} Re4 {[%emt 0:00:44]} 32. Rd1 {[%emt 0:00:26]} b4 {[%emt 0:00:35]} 33. Bc1 {[%emt 0:00:46]} Re2 {[%emt 0:00:20]} 34. Bf4 {[%emt 0:01:28]} Rxa2 {[%emt 0:00:32]} 35. Rb1 {[%emt 0:01:47]} Ne4 {[%emt 0:07:37]} 36. Rxb4 {[%emt 0:00:12]} Ra1+ {[%emt 0:00:06]} 37. Kh2 {[%emt 0:00:04]} Nf2 {[%emt 0:00:07]} 38. g4 {[%emt 0:00:09]} hxg4 {[%emt 0:00:34]} 39. g3 {[%emt 0:01:13]} Nd3 {[%emt 0:01:06]} 40. Rb6 {[%emt 0:00:16]} Ra2+ {[%emt 0:00:04]} 41. Kg1 {[%emt 0:00:21]} Nxf4 {[%emt 0:00:11]} 42. gxf4 {[%emt 0:00:08]} Kh5 {[%emt 0:00:15]} 43. Rxd6 {[%emt 0:00:25]} g3 {[%emt 0:01:58]} 44. Rc6 {[%emt 0:02:31]} Kg4 {[%emt 0:00:12]} 45. d6 {[%emt 0:00:30]} Kh3 {[%emt 0:00:19]} 0-1

[Event "Portugal Open 2019"]
[Site "Lisbon"]
[Date "2019.02.03"]
[Round "2"]
[White "Shailesh, Dravid"]
[Black "Saltvedt, Martin"]
[Result "1-0"]
[ECO "B12"]
[WhiteElo "2324"]
[BlackElo "2095"]
[Annotator "NA RC"]
[PlyCount "59"]
[EventDate "2019.01.25"]
[EventType "swiss"]
[EventCountry "POR"]
[SourceTitle "playchess.com"]
[Source "ChessBase"]
[SourceQuality "1"]
[TimeControl "5400+30"]

1. e4 {[%emt 0:06:18]} c6 {[%emt 0:00:00]} 2. d4 {[%emt 0:00:05]} d5 {[%emt 0:00:00]} 3. e5 {[%emt 0:00:04]} Bf5 {[%emt 0:00:00]} 4. Nc3 {[%emt 0:00:04]} e6 {[%emt 0:00:47]} 5. g4 {[%emt 0:00:59]} Bg6 {[%emt 0:00:12]} 6. Nge2 {[%emt 0:00:23]} Nd7 $146 {[%emt 0:05:36]} ({Predecessor:} 6... c5 7. h4 h6 8. Be3 Nc6 9. dxc5 Nxe5 10. Nf4 {½-½ (31) Pinkovetsky,S (2610)-Wunderlich,H (2562) ICCF email 2004}) 7. h4 {[%emt 0:01:12]} h6 {[%emt 0:02:22]} 8. Nf4 {[%emt 0:06:26]} Bh7 {[%emt 0:02:08] B12: Caro-Kann: Advance Variation} 9. Be3 {[%emt 0:01:20]} c5 {[%emt 0:12:13]} 10. dxc5 {[%emt 0:00:27]} Nxe5 {[%emt 0:00:43]} 11. Bb5+ {[%emt 0:00:59]} Nc6 {[%emt 0:00:53]} 12. Qe2 {[%emt 0:02:05]} Nge7 {[%emt 0:08:42]} 13. O-O-O {[%emt 0:06:22]} Qa5 {[%emt 0:02:47]} 14. Rd2 {[%emt 0:00:41]} ({Predecessor:} 14. Rd4 O-O-O 15. Ra4 Qc7 16. Rd1 g5 17. Bxc6 Nxc6 {½-½ (31) Pinkovetsky,S (2610)-Wunderlich,H (2562) ICCF email 2004}) 14... a6 {[%emt 0:11:52]} 15. Ba4 {[%emt 0:00:50]} Rd8 {[%emt 0:00:42]} 16. Rhd1 {[%emt 0:01:10]} Ng6 {[%emt 0:06:21]} 17. Nxg6 {[%emt 0:01:26]} Bxg6 {[%emt 0:00:11]} 18. h5 {[%emt 0:00:11]} Bh7 {[%emt 0:01:08]} 19. Rxd5 {[%emt 0:15:41]} (19. Bd4 $16) 19... Be7 {[%emt 0:05:25]} 20. Rxd8+ {[%emt 0:01:12]} Bxd8 {[%emt 0:00:01]} 21. Qf3 {[%emt 0:05:07]} O-O {[%emt 0:01:59]} 22. Bxc6 {[%emt 0:02:03]} bxc6 {[%emt 0:00:05]} 23. Qxc6 {[%emt 0:00:05]} Bf6 {[%emt 0:00:44]} 24. Bd4 {[%emt 0:00:11]} Bg5+ {[%emt 0:02:18]} 25. Kb1 {[%emt 0:00:11]} ({Weaker is} 25. Be3) 25... Rb8 {[%emt 0:06:40]} 26. Be5 {[%emt 0:01:26]} Rd8 {[%emt 0:03:16]} 27. Rxd8+ {[%emt 0:00:13]} Qxd8 $18 {[%emt 0:00:11]} 28. Qd6 {[%emt 0:00:16]} Qa8 {[%emt 0:06:21]} 29. c6 {[%emt 0:01:02]} a5 {[%emt 0:05:38]} 30. Qb8+ {[%emt 0:00:11]} 1-0

[Event "Portugal Open 2019"]
[Site "Lisbon"]
[Date "2019.02.03"]
[Round "2"]
[White "Bertola, Georges"]
[Black "Pastar, Slaven"]
[Result "0-1"]
[ECO "B40"]
[WhiteElo "2101"]
[BlackElo "2330"]
[Annotator "RC"]
[PlyCount "78"]
[EventDate "2019.01.25"]
[EventType "swiss"]
[EventCountry "POR"]
[SourceTitle "playchess.com"]
[Source "ChessBase"]
[SourceQuality "1"]
[TimeControl "5400+30"]

1. e4 {[%emt 0:01:37]} c5 {[%emt 0:00:00]} 2. Nf3 {[%emt 0:01:35]} e6 {[%emt 0:00:00]} 3. g3 {[%emt 0:00:26]} Nc6 {[%emt 0:00:08]} 4. Bg2 {[%emt 0:00:16]} Nf6 {[%emt 0:00:35]} 5. Nc3 {[%emt 0:01:08]} d5 {[%emt 0:00:14]} 6. exd5 {[%emt 0:00:31]} exd5 {[%emt 0:00:32]} 7. O-O {[%emt 0:02:04]} Be7 {[%emt 0:00:11]} 8. d4 {[%emt 0:05:41]} cxd4 {[%emt 0:01:54]} 9. Nxd4 {[%emt 0:00:25]} O-O {[%emt 0:00:25]} 10. h3 {[%emt 0:08:34]} h6 {[%emt 0:00:21]} 11. Be3 {[%emt 0:03:10]} Re8 {[%emt 0:02:38]} 12. Re1 {[%emt 0:08:25]} Bb4 {[%emt 0:02:35]} 13. a3 {[%emt 0:13:38]} Ba5 {[%emt 0:01:53]} 14. b4 {[%emt 0:03:53]} Bb6 {[%emt 0:02:31]} 15. Nxc6 {[%emt 0:07:53]} bxc6 {[%emt 0:00:15]} 16. Bxb6 {[%emt 0:00:40]} Rxe1+ {[%emt 0:02:15]} 17. Qxe1 {[%emt 0:00:12]} axb6 {[%emt 0:00:39]} 18. b5 {[%emt 0:10:56]} cxb5 {[%emt 0:01:54]} 19. Nxb5 {[%emt 0:02:18]} Ra5 {[%emt 0:02:18]} 20. Nd4 {[%emt 0:08:44]} Qd6 {[%emt 0:02:02]} 21. Qc3 {[%emt 0:00:59]} Bd7 {[%emt 0:01:54]} 22. Qb2 {[%emt 0:03:41]} Ra4 {[%emt 0:03:14]} 23. Rb1 {[%emt 0:04:34]} Qc5 {[%emt 0:00:47]} 24. c3 {[%emt 0:01:14]} Rxa3 {[%emt 0:08:05]} 25. Qxb6 {[%emt 0:00:37]} Qxc3 {[%emt 0:06:21]} 26. Nb5 {[%emt 0:02:57]} Bxb5 {[%emt 0:00:31]} 27. Qxb5 {[%emt 0:00:07]} Ra1 {[%emt 0:02:21]} 28. Rxa1 {[%emt 0:03:22]} Qxa1+ {[%emt 0:00:03]} 29. Kh2 {[%emt 0:00:00]} Qd4 {[%emt 0:01:09]} 30. Kg1 {[%emt 0:00:35]} g6 {[%emt 0:00:29]} 31. Bf3 {[%emt 0:00:56]} Kg7 {[%emt 0:00:44]} 32. Kg2 {[%emt 0:00:43]} Qc4 {[%emt 0:03:32]} 33. Qb1 {[%emt 0:02:58]} d4 {[%emt 0:00:53]} 34. Qd1 {[%emt 0:00:39]} d3 {[%emt 0:00:52]} 35. Qa1 {[%emt 0:01:01]} d2 {[%emt 0:00:58]} 36. Qe5 {[%emt 0:00:13]} Qd3 {[%emt 0:00:57]} 37. Qa1 {[%emt 0:00:44]} g5 {[%emt 0:01:23]} 38. Qf1 {[%emt 0:00:15]} Qd4 {[%emt 0:00:34]} 39. Qd1 {[%emt 0:01:13]} Nd7 {[%emt 0:01:48]} 0-1

[Event "Portugal Open 2019"]
[Site "Lisbon"]
[Date "2019.02.03"]
[Round "2"]
[White "Sousa, Hugo Carneiro"]
[Black "Fus, Jakub"]
[Result "0-1"]
[ECO "C54"]
[WhiteElo "2097"]
[BlackElo "2326"]
[Annotator "NA RC"]
[PlyCount "64"]
[EventDate "2019.01.25"]
[EventType "swiss"]
[EventCountry "POR"]
[SourceTitle "playchess.com"]
[Source "ChessBase"]
[SourceQuality "1"]
[TimeControl "5400+30"]

1. e4 {[%emt 0:00:00]} e5 {[%emt 0:00:00]} 2. Nf3 {[%emt 0:00:00]} Nc6 {[%emt 0:00:06]} 3. Bc4 {[%emt 0:00:00]} Bc5 {[%emt 0:00:20]} 4. c3 {[%emt 0:00:00]} Nf6 {[%emt 0:00:22]} 5. d3 {[%emt 0:00:06]} d6 {[%emt 0:00:23]} 6. Bb3 {[%emt 0:00:26]} a6 {[%emt 0:01:40]} 7. h3 {[%emt 0:00:22]} h6 {[%emt 0:00:25]} 8. Nbd2 {[%emt 0:00:28]} Ba7 {[%emt 0:01:34]} 9. Nf1 {[%emt 0:01:03]} Be6 {[%emt 0:01:45]} 10. Bc2 {[%emt 0:01:49]} O-O {[%emt 0:01:20]} 11. g4 {[%emt 0:02:26]} d5 {[%emt 0:01:58]} 12. Qe2 {[%emt 0:04:00]} dxe4 {[%emt 0:18:11]} 13. dxe4 {[%emt 0:00:14]} b5 {[%emt 0:02:53]} 14. Bb3 {[%emt 0:03:46]} Nd7 {[%emt 0:04:10]} 15. g5 {[%emt 0:08:08]} (15. Be3 $11 {remains equal.}) 15... Bxb3 {[%emt 0:10:50]} 16. axb3 {[%emt 0:00:19]} Nc5 {[%emt 0:00:08]} 17. gxh6 $2 {[%emt 0:05:04]} (17. Ng3 $17 {is more resistant.}) 17... Nd3+ {[%emt 0:01:42]} 18. Kd1 {[%emt 0:03:19]} Nxf2+ {[%emt 0:01:02]} (18... Nf4+ $142 19. Qd2 Qf6 20. h7+ Kxh7) 19. Kc2 {[%emt 0:02:30]} Nxh1 {[%emt 0:01:17]} 20. Qg2 {[%emt 0:09:32]} g6 {[%emt 0:03:12]} 21. Qxh1 {[%emt 0:04:05]} Qd6 {[%emt 0:03:50]} 22. Ne3 {[%emt 0:08:52]} Ne7 {[%emt 0:11:07]} 23. Qg2 {[%emt 0:04:54]} Rad8 {[%emt 0:01:19]} 24. Qe2 {[%emt 0:00:22]} f5 {[%emt 0:06:18]} 25. exf5 $2 {[%emt 0:04:14]} (25. Ng5) 25... e4 {[%emt 0:00:48]} 26. Nh4 {[%emt 0:10:13]} Qd3+ {[%emt 0:00:43]} 27. Qxd3 {[%emt 0:00:06]} exd3+ {[%emt 0:00:05]} 28. Kd2 {[%emt 0:00:14]} Bxe3+ {[%emt 0:01:17]} 29. Kxe3 {[%emt 0:02:08]} g5 {[%emt 0:00:15]} 30. Nf3 {[%emt 0:03:15]} Nxf5+ $19 {[%emt 0:00:25]} 31. Kd2 {[%emt 0:00:39]} Rd6 {[%emt 0:07:12]} 32. Nxg5 {[%emt 0:01:03]} Ng3 {[%emt 0:00:31]} 0-1

[Event "Portugal Open 2019"]
[Site "Lisbon"]
[Date "2019.02.03"]
[Round "3.3"]
[White "Hansen, Eric"]
[Black "Di Nicolantonio, Lucas"]
[Result "1-0"]
[ECO "C42"]
[WhiteElo "2615"]
[BlackElo "2364"]
[Annotator "RC"]
[PlyCount "121"]
[EventDate "2019.01.25"]
[EventType "swiss"]
[EventCountry "POR"]
[SourceTitle "playchess.com"]
[Source "ChessBase"]
[SourceQuality "1"]
[TimeControl "5400+30"]

1. e4 {[%emt 0:14:59]} e5 {[%emt 0:00:00]} 2. Nf3 {[%emt 0:00:07]} Nf6 {[%emt 0:00:00]} 3. Nxe5 {[%emt 0:00:48]} d6 {[%emt 0:00:00]} 4. Nf3 {[%emt 0:00:05]} Nxe4 {[%emt 0:00:07]} 5. d4 {[%emt 0:11:27]} d5 {[%emt 0:00:37]} 6. Bd3 {[%emt 0:00:08]} Bd6 {[%emt 0:00:47]} 7. O-O {[%emt 0:00:09]} O-O {[%emt 0:00:07]} 8. Re1 {[%emt 0:13:17]} Bf5 {[%emt 0:10:43]} 9. Nc3 {[%emt 0:02:43]} Nxc3 {[%emt 0:39:10]} 10. bxc3 {[%emt 0:00:06]} Bxd3 {[%emt 0:00:11]} 11. Qxd3 {[%emt 0:00:09]} h6 {[%emt 0:10:08]} 12. c4 {[%emt 0:04:14]} dxc4 {[%emt 0:00:26]} 13. Qxc4 {[%emt 0:00:07]} Nc6 {[%emt 0:02:07]} 14. Bb2 {[%emt 0:01:20]} Qd7 {[%emt 0:08:27]} 15. Qb3 {[%emt 0:38:13]} Rfe8 {[%emt 0:04:50]} 16. c4 {[%emt 0:00:07]} b6 {[%emt 0:04:10]} 17. Bc3 {[%emt 0:01:07]} Rxe1+ {[%emt 0:01:23]} 18. Rxe1 {[%emt 0:00:08]} Re8 {[%emt 0:00:05]} 19. Rd1 {[%emt 0:00:11]} Bf8 {[%emt 0:10:57]} 20. h3 {[%emt 0:00:37]} Re4 {[%emt 0:04:18]} 21. Kf1 {[%emt 0:02:20]} Re8 {[%emt 0:00:22]} 22. Qc2 {[%emt 0:02:32]} Nb4 {[%emt 0:01:09]} 23. Qb3 {[%emt 0:01:01]} Nc6 {[%emt 0:00:04]} 24. Qa4 {[%emt 0:05:19]} a5 {[%emt 0:00:07]} 25. Qb5 {[%emt 0:00:39]} Nb8 {[%emt 0:00:22]} 26. Qb3 {[%emt 0:00:21]} Nc6 {[%emt 0:00:32]} 27. Qb5 {[%emt 0:00:41]} Nb8 {[%emt 0:00:03]} 28. Qb1 {[%emt 0:00:29]} Qa4 {[%emt 0:01:33]} 29. Qb3 {[%emt 0:00:05]} Qxb3 {[%emt 0:00:35]} 30. axb3 {[%emt 0:00:05]} Nc6 {[%emt 0:00:22]} 31. d5 {[%emt 0:00:56]} Nb4 {[%emt 0:00:15]} 32. Be5 {[%emt 0:00:34]} Na6 {[%emt 0:00:59]} 33. Bh2 {[%emt 0:00:45]} Bc5 {[%emt 0:00:42]} 34. Re1 {[%emt 0:00:35]} Kf8 {[%emt 0:00:19]} 35. Ne5 {[%emt 0:00:24]} Re7 {[%emt 0:00:34]} 36. Nd3 {[%emt 0:00:34]} Rxe1+ {[%emt 0:00:35]} 37. Kxe1 {[%emt 0:00:05]} Ba3 {[%emt 0:00:34]} 38. Kd2 {[%emt 0:00:34]} Ke7 {[%emt 0:00:15]} 39. Be5 {[%emt 0:00:15]} g6 {[%emt 0:00:21]} 40. g4 {[%emt 0:00:09]} Bd6 {[%emt 0:00:16]} 41. Bg7 {[%emt 0:00:36]} h5 {[%emt 0:00:38]} 42. gxh5 {[%emt 0:00:02]} gxh5 {[%emt 0:00:05]} 43. Bd4 {[%emt 0:00:10]} Nb8 {[%emt 0:01:33]} 44. Ke3 {[%emt 0:00:21]} Nd7 {[%emt 0:00:21]} 45. Ke4 {[%emt 0:00:06]} f6 {[%emt 0:00:39]} 46. Kf5 {[%emt 0:00:40]} Kf7 {[%emt 0:00:03]} 47. Be3 {[%emt 0:02:14]} Ne5 {[%emt 0:00:48]} 48. Nxe5+ {[%emt 0:00:05]} Bxe5 {[%emt 0:00:04]} 49. Bf4 {[%emt 0:00:12]} Bxf4 {[%emt 0:01:05]} 50. Kxf4 {[%emt 0:00:05]} Ke7 {[%emt 0:00:10]} 51. Kf5 {[%emt 0:01:12]} Kd6 {[%emt 0:00:24]} 52. Kxf6 {[%emt 0:00:20]} Kc5 {[%emt 0:00:03]} 53. Ke7 {[%emt 0:01:12]} Kb4 {[%emt 0:00:03]} 54. Kd7 {[%emt 0:00:40]} Kxb3 {[%emt 0:00:04]} 55. Kxc7 {[%emt 0:00:06]} a4 {[%emt 0:00:08]} 56. d6 {[%emt 0:00:06]} a3 {[%emt 0:00:04]} 57. d7 {[%emt 0:00:03]} a2 {[%emt 0:00:03]} 58. d8=Q {[%emt 0:00:10]} a1=Q {[%emt 0:00:07]} 59. Qd5 {[%emt 0:01:05]} Qc3 {[%emt 0:02:38]} 60. c5+ {[%emt 0:01:04]} Kc2 {[%emt 0:01:06]} 61. Qf5+ {[%emt 0:00:31]} 1-0